bitfinex-derivatives/quotes_SOLF0:USTF0_20240927
["timestamp","ask_amount","ask_price","bid_price","bid_amount"]
[1727417545815,15.21,158.28,158.17,15.21]
[1727417546012,15.21,158.26,158.17,15.21]
[1727417546220,8.9776,158.31,158.15,16.5807]
[1727417546423,3.1602,158.2,158.17,15.21]
[1727417546718,15.21,158.27,158.17,15.21]
[1727417546914,3.1604,158.18,158.17,15.21]
[1727417547520,18.3935693,158.25,158.15,15.21]
[1727417547819,3.1608,158.17,158.15,15.21]
[1727417548417,15.21,158.28,158.15,15.21]
[1727417548620,5.0,158.56,158.3,15.21]
[1727417548824,2.6625,158.44,158.22,75.86]
[1727417549020,2.6625,158.44,158.35,15.21]
[1727417549316,2.6625,158.44,158.28,15.21]
[1727417549317,15.21,158.43,158.28,15.21]
[1727417549518,16.5448,158.43,158.3,15.21]
[1727417550320,6.3009,158.69,158.4,24.27]
[1727417550515,1.3163,158.6,158.47,24.27]
[1727417550715,3.3163,158.6,158.47,24.27]
[1727417550922,2.0,158.6,158.5,24.27]
[1727417551220,2.0,158.63,158.38,3.15473633]
[1727417551423,24.27,158.66,158.49,24.27]
[1727417551621,3.1528,158.57,158.49,24.27]
[1727417551815,24.27,158.66,158.49,24.27]
[1727417552016,1.2498,158.64,158.49,24.27]
[1727417552325,24.27,158.63,158.49,24.27]
[1727417552723,1.2498,158.64,158.49,27.4242]
[1727417552724,3.1525,158.58,158.49,27.4242]
[1727417552924,1.2498,158.64,158.49,24.27]
[1727417553127,25.5198,158.64,158.49,24.27]
[1727417553626,44.4998,158.64,158.49,24.27]
[1727417553828,25.5198,158.64,158.49,27.4242]
[1727417554223,25.5198,158.64,158.49,24.27]
[1727417554419,1.2498,158.64,158.49,24.27]
[1727417555221,1.2498,158.64,158.5,3.154]
[1727417555429,1.2498,158.64,158.52,24.27]
[1727417555729,3.1525,158.58,158.52,24.27]
[1727417555923,1.2498,158.64,158.5,3.154]
[1727417556123,1.2498,158.64,158.49,24.27]
[1727417556827,1.2498,158.64,158.5,3.154]
[1727417557028,1.2498,158.64,158.49,24.27]
[1727417557427,3.1527,158.57,158.5,3.1539]
[1727417558325,3.1529,158.56,158.49,27.4242]
[1727417559328,24.27,158.62,158.47,24.27]
[1727417559529,1.2498,158.64,158.49,24.27]
[1727417559928,24.27,158.62,158.49,24.27]
[1727417561327,24.27,158.55,158.41,1.2738]
[1727417561526,24.27,158.52,158.37,75.18326113]
[1727417561731,24.27,158.49,158.37,99.45326113]
[1727417562134,24.27,158.47,158.37,75.18326113]
[1727417562434,24.27,158.45,158.32,1.3126]
[1727417562629,24.27,158.45,158.31,24.27]
[1727417562630,3.1559,158.41,158.31,24.27]
[1727417562825,24.27,158.47,158.34,24.27]
[1727417563231,24.27,158.47,158.37,3.1565]
[1727417563427,24.27,158.47,158.34,24.27]
[1727417563631,24.27,158.45,158.29,1.2899]
[1727417563829,24.27,158.45,158.31,24.27]
[1727417564035,27.39342436,158.45,158.31,24.27]
[1727417564936,27.39342436,158.45,158.32,3.1576]
[1727417565134,24.27,158.48,158.33,24.27]
[1727417565342,24.27,158.48,158.34,3.1572]
[1727417565538,24.27,158.48,158.33,24.27]
[1727417565732,24.27,158.45,158.33,24.27]
[1727417565936,3.1563,158.39,158.33,27.4274]
[1727417567031,27.49037019,158.45,158.33,24.27]
[1727417567231,1.348,158.51,158.35,24.27]
[1727417567538,1.348,158.51,158.4,24.27]
[1727417567738,3.22729742,158.5,158.37,24.27]
[1727417567942,3.22729742,158.5,158.39,3.1561]
[1727417568239,28.84592911,158.51,158.37,24.27]
[1727417568439,3.1558,158.42,158.37,24.27]
[1727417568636,24.27,158.49,158.37,24.27]
[1727417568940,3.156,158.41,158.35,27.4269]
[1727417569136,24.27,158.49,158.35,27.4269]
[1727417569340,24.27,158.49,158.35,24.27]
[1727417570242,3.1562,158.4,158.35,24.27]
[1727417570440,3.1562,158.4,158.35,27.427]
[1727417570640,24.27,158.49,158.35,24.27]
[1727417571043,24.27,158.49,158.37,24.27]
[1727417571340,3.1557,158.42,158.37,24.27]
[1727417571542,75.76,158.5,158.37,24.27]
[1727417572140,75.76,158.5,158.39,3.1561]
[1727417572541,75.76,158.5,158.37,24.27]
[1727417572740,24.27,158.49,158.39,3.1562]
[1727417572936,3.1555,158.43,158.37,24.27]
[1727417573242,75.76,158.64,158.42,24.27]
[1727417573444,1.2806,158.5,158.42,24.27]
[1727417573941,1.2806,158.5,158.45,3.1549]
[1727417574537,1.2806,158.5,158.42,24.27]
[1727417575046,1.2806,158.5,158.46,3.1547]
[1727417575541,1.2806,158.5,158.42,24.27]
[1727417576342,1.2806,158.5,158.42,3.1556]
[1727417576542,1.2806,158.5,158.4,24.27]
[1727417577040,1.2806,158.5,158.41,3.1557]
[1727417577243,1.2806,158.5,158.4,24.27]
[1727417577439,1.2806,158.5,158.42,3.1555]
[1727417577642,1.2806,158.5,158.4,24.27]
[1727417578048,1.2806,158.5,158.43,3.1554]
[1727417578245,1.2806,158.5,158.4,24.27]
[1727417578745,1.2806,158.5,158.42,24.27]
[1727417579849,1.2806,158.5,158.46,3.1547]
[1727417580045,1.2806,158.5,158.41,24.27]
[1727417580748,1.2806,158.5,158.44,24.27]
[1727417581148,25.6422,158.61,158.47,24.27]
[1727417581450,2.6514,158.6,158.47,24.27]
[1727417581644,3.153,158.56,158.51,3.1538]
[1727417581845,2.6514,158.6,158.47,24.27]
[1727417582046,3.1531,158.55,158.47,24.27]
[1727417582743,2.6514,158.6,158.47,24.27]
[1727417582744,3.1533,158.54,158.47,24.27]
[1727417582951,2.6514,158.6,158.47,24.27]
[1727417583247,2.6514,158.6,158.52,24.27]
[1727417584351,2.6514,158.6,158.56,3.1528]
[1727417584746,2.6514,158.6,158.52,24.27]
[1727417584950,3.1524,158.59,158.54,3.1531]
[1727417585252,3.1524,158.59,158.52,24.27]
[1727417585451,3.1522,158.6,158.55,3.153]
[1727417585752,26.915,158.64,158.43,1.2845]
[1727417585952,3.1523,158.59,158.54,3.1531]
[1727417586355,26.915,158.64,158.5,24.27]
[1727417586952,3.1524,158.59,158.54,3.1531]
[1727417587154,26.915,158.64,158.54,3.1531]
[1727417587654,26.915,158.64,158.5,24.27]
[1727417588157,3.1525,158.58,158.5,24.27]
[1727417588352,26.915,158.64,158.54,3.1531]
[1727417588754,3.1526,158.58,158.54,3.1531]
[1727417589155,26.915,158.64,158.53,3.1534]
[1727417589356,26.915,158.64,158.5,24.27]
[1727417589860,26.915,158.64,158.53,3.1534]
[1727417590950,26.915,158.64,158.5,24.27]
[1727417591453,3.1524,158.59,158.52,3.1535]
[1727417591658,26.915,158.64,158.5,24.27]
[1727417592057,24.27,158.62,158.47,24.27]
[1727417592556,3.1528,158.57,158.51,3.1538]
[1727417594758,3.1529,158.56,158.5,3.154]
[1727417595159,24.27,158.62,158.47,24.27]
[1727417597555,3.153,158.56,158.5,3.1539]
[1727417597752,24.27,158.62,158.47,24.27]
[1727417598258,3.153,158.56,158.5,3.154]
[1727417599460,3.153,158.56,158.43,1.2845]
[1727417599461,24.27,158.56,158.43,1.2845]
[1727417599763,27.47154294,158.56,158.43,25.5545]
[1727417599952,28.74414294,158.56,158.43,25.5545]
[1727417600154,1.3251,158.55,158.43,25.5545]
[1727417600562,1.3251,158.55,158.44,3.1552]
[1727417601164,3.1541,158.5,158.44,3.1552]
[1727417601360,3.19554931,158.53,158.43,4.4399]
[1727417601561,1.3251,158.55,158.43,4.4399]
[1727417601866,5.85948148,158.55,158.43,1.2845]
[1727417602162,2.6686,158.55,158.45,3.155]
[1727417602360,5.76291242,158.55,158.43,1.2845]
[1727417602561,2.6686,158.55,158.43,1.2845]
[1727417602857,2.6686,158.55,158.44,24.27]
[1727417603255,1.3251,158.55,158.44,24.27]
[1727417603462,1.3251,158.55,158.46,24.27]
[1727417603654,3.1533,158.54,158.48,3.1543]
[1727417604056,1.3251,158.55,158.46,24.27]
[1727417604660,1.3251,158.55,158.44,24.27]
[1727417605063,3.1538,158.52,158.46,3.1548]
[1727417605264,24.27,158.54,158.43,1.2845]
[1727417605664,24.27,158.54,158.43,4.4399]
[1727417606667,24.27,158.54,158.43,1.2845]
[1727417606970,3.1548,158.47,158.43,1.2845]
[1727417607468,3.1545,158.48,158.43,1.2845]
[1727417607870,24.27,158.54,158.44,3.1552]
[1727417608069,24.27,158.54,158.43,1.2845]
[1727417608470,3.1542,158.5,158.44,3.1552]
[1727417608672,24.27,158.54,158.44,3.1552]
[1727417608875,24.27,158.54,158.43,1.2845]
[1727417609068,3.1545,158.48,158.43,4.4399]
[1727417609269,24.27,158.54,158.43,1.2845]
[1727417611571,3.1546,158.48,158.43,4.4399]
[1727417611874,24.27,158.54,158.43,1.2845]
[1727417612075,24.27,158.54,158.43,25.5545]
[1727417612269,3.1542,158.5,158.45,3.155]
[1727417612665,24.27,158.54,158.44,3.1552]
[1727417612867,24.27,158.54,158.43,25.5545]
[1727417613473,24.27,158.54,158.43,1.2845]
[1727417613775,24.27,158.54,158.4,24.27]
[1727417614377,3.1548,158.47,158.42,3.1556]
[1727417614873,3.1553,158.44,158.39,3.1561]
[1727417616578,3.1555,158.43,158.38,27.4264]
[1727417617481,3.1557,158.42,158.38,27.4264]
[1727417617680,24.27,158.49,158.37,1.3648]
[1727417618179,1.2658,158.48,158.36,99.46286522]
[1727417618576,1.2426,158.47,158.36,99.46286522]
[1727417619177,3.1558,158.42,158.37,3.1566]
[1727417619376,1.2426,158.47,158.36,99.46286522]
[1727417619576,24.27,158.46,158.33,24.27]
[1727417619888,24.27,158.46,158.33,27.4273]
[1727417620077,24.27,158.46,158.33,24.27]
[1727417620278,3.1566,158.38,158.33,24.27]
[1727417621378,3.1563,158.39,158.33,24.27]
[1727417621583,1.3127,158.4,158.33,24.27]
[1727417622080,1.3127,158.4,158.3,24.27]
[1727417622385,1.3077,158.39,158.3,3.1579]
[1727417622685,1.3077,158.39,158.28,24.27]
[1727417623078,3.1571,158.35,158.28,24.27]
[1727417623379,1.3077,158.39,158.29,3.1582]
[1727417623584,3.1574,158.34,158.26,1.2587]
[1727417624281,3.1576,158.33,158.28,3.1584]
[1727417624585,24.27,158.38,158.26,1.2587]
[1727417624881,24.27,158.36,158.26,1.2587]
[1727417625084,24.27,158.36,158.23,24.27]
[1727417625285,3.1578,158.32,158.26,3.1588]
[1727417625586,24.27,158.36,158.26,3.1588]
[1727417626185,3.158,158.31,158.25,3.159]
[1727417627088,3.1581,158.3,158.25,3.159]
[1727417627483,3.15809437,158.34,158.26,3.1588]
[1727417627687,24.27,158.36,158.26,3.1588]
[1727417627887,24.27,158.36,158.23,24.27]
[1727417628192,24.27,158.36,158.25,3.159]
[1727417628794,3.1582,158.3,158.25,3.159]
[1727417629094,3.08571275,158.32,158.23,24.27]
[1727417629293,24.27,158.36,158.23,24.27]
[1727417629491,24.27,158.36,158.27,3.1586]
[1727417629888,27.40057517,158.36,158.27,3.1586]
[1727417630285,24.27,158.38,158.25,24.27]
[1727417630490,4.53621425,158.39,158.25,24.27]
[1727417630890,4.53621425,158.39,158.29,3.158]
[1727417631086,1.3077,158.39,158.28,24.27]
[1727417631491,3.1569,158.36,158.31,3.1578]
[1727417631892,3.1569,158.36,158.28,24.27]
[1727417631893,3.157,158.35,158.3,3.158]
[1727417632295,1.3077,158.39,158.3,3.158]
[1727417632497,3.1573,158.34,158.29,3.1582]
[1727417632998,3.1572,158.35,158.3,3.1579]
[1727417634296,3.1572,158.34,158.3,3.1579]
[1727417634895,3.1572,158.34,158.25,24.27]
[1727417634896,24.27,158.38,158.25,24.27]
[1727417635399,3.1578,158.32,158.25,24.27]
[1727417635794,24.27,158.38,158.25,24.27]
[1727417635991,3.1581,158.3,158.26,3.1587]
[1727417636597,3.1579,158.31,158.27,3.1586]
[1727417636799,24.27,158.38,158.23,24.27]
[1727417637001,3.1578,158.32,158.23,24.27]
[1727417637203,24.27,158.38,158.26,24.27]
[1727417637906,1.3077,158.39,158.26,24.27]
[1727417638303,3.1573,158.34,158.3,3.1579]
[1727417639019,1.3077,158.39,158.26,24.27]
[1727417639309,1.3077,158.39,158.28,24.27]
[1727417640307,3.1568,158.37,158.32,3.1575]
[1727417640507,3.1568,158.37,158.28,24.27]
[1727417641206,3.1569,158.36,158.28,24.27]
[1727417641406,3.1569,158.36,158.32,3.1575]
[1727417641799,18.98,158.55,158.35,24.27]
[1727417641999,1.3052,158.51,158.38,24.27]
[1727417642303,1.3052,158.51,158.4,3.1559]
[1727417642709,1.3052,158.51,158.38,24.27]
[1727417642909,3.1548,158.47,158.41,3.1558]
[1727417643603,1.3052,158.51,158.38,24.27]
[1727417644100,1.3052,158.51,158.41,3.1558]
[1727417644506,3.1549,158.46,158.4,3.156]
[1727417644701,3.1549,158.46,158.38,24.27]
[1727417645109,3.1549,158.46,158.4,3.156]
[1727417645610,3.1549,158.46,158.41,3.1558]
[1727417645812,3.08898238,158.47,158.36,1.3587]
[1727417646111,2.6736,158.54,158.36,1.3587]
[1727417646112,224.0,158.67,158.45,24.27]
[1727417646306,24.27,158.61,158.48,24.27]
[1727417646606,24.27,158.61,158.5,3.1539]
[1727417646813,24.27,158.61,158.48,24.27]
[1727417647009,27.47708426,158.61,158.48,24.27]
[1727417647205,27.47708426,158.61,158.5,3.154]
[1727417647807,24.27,158.61,158.48,24.27]
[1727417648207,27.44710856,158.61,158.5,3.154]
[1727417648810,27.44710856,158.61,158.51,3.1538]
[1727417649307,3.153,158.56,158.48,24.27]
[1727417649704,27.44710856,158.61,158.48,24.27]
[1727417650113,27.44710856,158.61,158.5,3.1539]
[1727417650514,27.44710856,158.61,158.48,24.27]
[1727417651015,3.153,158.56,158.48,24.27]
[1727417651207,3.153,158.56,158.5,3.1539]
[1727417651906,3.153,158.56,158.51,3.1538]
[1727417652704,3.153,158.56,158.48,24.27]
[1727417652905,3.153,158.56,158.5,3.154]
[1727417653716,3.1531,158.55,158.5,3.154]
[1727417654313,4.34147784,158.56,158.48,27.4244]
[1727417654507,1.2486,158.55,158.48,27.4244]
[1727417654711,1.2486,158.55,158.48,24.27]
[1727417655708,4.44782119,158.55,158.48,24.27]
[1727417656617,1.2486,158.55,158.48,24.27]
[1727417657418,1.2486,158.55,158.49,3.1542]
[1727417658416,3.1534,158.54,158.49,3.1542]
[1727417658614,1.2486,158.55,158.49,3.1542]
[1727417658809,1.2486,158.55,158.46,1.3109]
[1727417659416,3.1536,158.53,158.48,3.1544]
[1727417659609,4.39975219,158.55,158.47,24.27]
[1727417659810,1.2486,158.55,158.47,24.27]
[1727417660119,72.57659253,158.69,158.52,24.27]
[1727417660316,24.27,158.66,158.52,24.27]
[1727417661313,43.25,158.66,158.52,24.27]
[1727417661716,3.1522,158.6,158.55,3.1529]
[1727417662313,43.25,158.66,158.55,24.27]
[1727417662314,3.1735243,158.66,158.55,24.27]
[1727417662619,2.5654,158.67,158.58,24.27]
[1727417662819,3.151,158.66,158.6,3.152]
[1727417663720,3.151,158.66,158.61,3.1519]
[1727417664512,3.151,158.66,158.6,3.152]
[1727417664817,2.5654,158.67,158.61,24.27]
[1727417665015,2.5654,158.67,158.61,3.1518]
[1727417665218,2.5654,158.67,158.58,24.27]
[1727417665417,3.1509,158.66,158.58,24.27]
[1727417665618,3.1509,158.66,158.6,3.152]
[1727417665818,2.5654,158.67,158.6,3.152]
[1727417667323,3.1509,158.66,158.6,3.152]
[1727417667519,3.19258832,158.66,158.58,24.27]
[1727417667728,3.1514,158.64,158.58,24.27]
[1727417668017,2.5654,158.67,158.58,27.4224]
[1727417668219,3.152,158.61,158.56,24.27]
[1727417668622,2.5654,158.67,158.56,24.27]
[1727417669124,3.17524929,158.66,158.56,24.27]
[1727417669319,2.5654,158.67,158.56,24.27]
[1727417670021,3.11719802,158.66,158.56,24.27]
[1727417670219,2.5654,158.67,158.56,24.27]
[1727417670615,24.27,158.66,158.53,24.27]
[1727417671219,3.1525,158.58,158.53,24.27]
[1727417672028,3.1527,158.57,158.51,24.27]
[1727417672219,24.27,158.64,158.51,24.27]
[1727417672617,24.27,158.64,158.52,3.1536]
[1727417672618,3.1526,158.58,158.52,3.1536]
[1727417673325,3.1527,158.57,158.52,3.1536]
[1727417673520,24.27,158.64,158.51,27.4238]
[1727417673823,24.27,158.64,158.51,24.27]
[1727417674024,3.1913044,158.66,158.53,24.27]
[1727417674025,27.4613044,158.66,158.53,24.27]
[1727417674328,24.27,158.66,158.53,24.27]
[1727417674527,3.1528,158.57,158.53,24.27]
[1727417674929,27.38262246,158.66,158.53,24.27]
[1727417675123,3.1525,158.59,158.53,24.27]
[1727417675726,3.1525,158.58,158.53,24.27]
[1727417675925,27.38262246,158.66,158.53,27.4234]
[1727417676126,27.38262246,158.66,158.53,24.27]
[1727417676327,15.14,158.64,158.53,15.14]
[1727417676525,15.14,158.64,158.53,18.2934]
[1727417676731,3.1526,158.58,158.46,4.48139154]
[1727417677030,3.1526,158.58,158.53,15.14]
[1727417677526,3.1527,158.57,158.53,15.14]
[1727417677929,3.1529,158.56,158.53,15.14]
[1727417678529,15.14,158.64,158.55,15.14]
[1727417679231,3.1525,158.58,158.55,15.14]
[1727417681235,3.1523,158.59,158.55,15.14]
[1727417683033,3.1523,158.59,158.55,18.293]
[1727417683231,2.5654,158.67,158.55,15.14]
[1727417683232,15.14,158.66,158.55,15.14]
[1727417683930,3.1517,158.62,158.57,3.1526]
[1727417684132,2.5654,158.67,158.57,15.14]
[1727417684435,5.74414701,158.67,158.57,15.14]
[1727417684634,2.5654,158.67,158.57,15.14]
[1727417685037,3.1518,158.62,158.57,18.2926]
[1727417685931,5.66812458,158.67,158.57,18.2926]
[1727417685932,5.66812458,158.67,158.57,15.14]
[1727417686527,15.14,158.65,158.57,15.14]
[1727417686732,5.66812458,158.67,158.57,15.14]
[1727417687231,15.14,158.65,158.55,18.293]
[1727417687430,15.14,158.65,158.55,15.14]
[1727417687931,3.1522,158.6,158.55,18.2929]
[1727417688832,3.1523,158.59,158.55,15.14]
[1727417689334,5.66812458,158.67,158.57,15.14]
[1727417689531,2.5654,158.67,158.61,15.14]
[1727417689934,3.1512,158.65,158.61,15.14]
[1727417690635,3.1513,158.64,158.61,15.14]
[1727417691232,3.1511,158.65,158.61,15.14]
[1727417691435,2.5654,158.67,158.61,15.14]
[1727417691840,3.1511,158.65,158.61,15.14]
[1727417692040,2.5654,158.67,158.61,15.14]
[1727417692339,3.151,158.66,158.61,18.2917]
[1727417694731,1.2489,158.7,158.62,3.1516]
[1727417694936,1.2489,158.7,158.61,15.14]
[1727417695136,3.1508,158.67,158.61,15.14]
[1727417695329,15.14,158.73,158.61,15.14]
[1727417695739,3.1506,158.68,158.63,3.1515]
[1727417695936,3.09076092,158.69,158.55,1.3713]
[1727417696143,15.14,158.71,158.6,15.14]
[1727417696341,3.1512,158.65,158.6,18.2921]
[1727417696639,3.16169332,158.69,158.6,15.14]
[1727417696842,3.1512,158.65,158.6,18.292]
[1727417697742,3.1509,158.66,158.61,3.1518]
[1727417698435,3.1511,158.65,158.6,15.14]
[1727417699538,3.1511,158.65,158.6,18.292]
[1727417700539,3.22348331,158.69,158.6,15.14]
[1727417700743,15.14,158.71,158.62,15.14]
[1727417701243,3.1512,158.65,158.62,15.14]
[1727417702546,15.14,158.68,158.58,15.14]
[1727417702941,2.6766,158.67,158.58,15.14]
[1727417703542,17.8166,158.67,158.58,15.14]
[1727417704147,2.6766,158.67,158.58,15.14]
[1727417704352,2.6766,158.67,158.6,15.14]
[1727417706055,3.1514,158.64,158.6,15.14]
[1727417706348,3.1515,158.63,158.6,15.14]
[1727417706950,2.6766,158.67,158.58,15.14]
[1727417707154,17.8166,158.67,158.58,15.14]
[1727417707558,17.8166,158.67,158.55,1.3713]
[1727417707559,17.8166,158.67,158.56,15.14]
[1727417708160,3.152,158.61,158.56,18.2928]
[1727417708457,17.8166,158.67,158.56,15.14]
[1727417708857,3.1521,158.6,158.56,18.2927]
[1727417709455,3.1523,158.59,158.56,15.14]
[1727417709655,15.14,158.65,158.56,15.14]
[1727417709857,15.14,158.63,158.42,300.66]
[1727417710155,8.9783,158.67,158.49,15.14]
[1727417710156,15.14,158.61,158.49,15.14]
[1727417710455,3.898,158.6,158.49,18.2942]
[1727417710955,3.1531,158.55,158.5,3.1539]
[1727417711460,3.898,158.6,158.49,15.14]
[1727417711661,3.898,158.6,158.49,18.2941]
[1727417711662,3.1534,158.54,158.49,18.2941]
[1727417711856,3.898,158.6,158.49,18.2941]
[1727417712160,3.1535,158.53,158.49,15.14]
[1727417712662,3.1533,158.54,158.49,18.2942]
[1727417714257,3.898,158.6,158.49,15.14]
[1727417714456,15.14,158.58,158.49,15.14]
[1727417714655,15.14,158.58,158.47,15.14]
[1727417714856,15.14,158.58,158.43,12.43032867]
[1727417714857,3.898,158.6,158.49,15.14]
[1727417715166,19.038,158.6,158.49,15.14]
[1727417715367,19.038,158.6,158.5,1.3169]
[1727417716169,19.038,158.6,158.5,4.4709]
[1727417717166,3.1532,158.55,158.5,4.4709]
[1727417719663,3.1533,158.54,158.5,4.4709]
[1727417719872,19.038,158.6,158.5,4.4709]
[1727417720060,3.1534,158.54,158.5,1.3169]
[1727417720662,19.038,158.6,158.5,1.3169]
[1727417720866,15.14,158.54,158.42,18.57021053]
[1727417721070,1.3587,158.53,158.43,22.12992788]
[1727417721267,25.2844,158.6,158.43,15.14]
[1727417721467,15.14,158.49,158.41,1.3241]
[1727417721672,15.14,158.47,158.39,75.19038774]
[1727417721966,3.1556,158.43,158.39,75.19038774]
[1727417722473,3.1558,158.42,158.37,18.2965]
[1727417722673,15.14,158.47,158.35,15.14]
[1727417722875,34.12,158.53,158.33,2.62]
[1727417722876,15.14,158.44,158.33,17.76]
[1727417723074,3.15513759,158.43,158.33,17.76]
[1727417723265,3.1562,158.4,158.35,3.157]
[1727417723876,3.1563,158.39,158.33,16.4641]
[1727417724177,15.14,158.42,158.33,16.4641]
[1727417724568,15.14,158.42,158.33,1.3241]
[1727417724767,15.14,158.4,158.33,1.3241]
[1727417724972,15.14,158.4,158.31,15.14]
[1727417725169,3.13751705,158.39,158.29,17.7134]
[1727417725671,3.1569,158.36,158.31,3.1577]
[1727417727676,18.98,158.45,158.31,3.1577]
[1727417727972,15.14,158.38,158.27,15.14]
[1727417728176,3.10147712,158.37,158.27,15.14]
[1727417728376,3.1574,158.34,158.29,3.1581]
[1727417728672,15.14,158.36,158.25,2.5764]
[1727417728880,15.14,158.31,158.24,1.352]
[1727417729176,15.14,158.31,158.2,15.14]
[1727417729470,15.14,158.31,158.2,16.4811]
[1727417729471,15.14,158.29,158.2,16.4811]
[1727417729673,18.98,158.41,158.23,15.14]
[1727417729870,15.14,158.37,158.27,15.14]
[1727417730072,3.08347466,158.36,158.27,15.14]
[1727417730575,3.20285942,158.36,158.27,15.14]
[1727417730772,488.43164332,158.44,158.27,15.14]
[1727417730971,3.1572,158.35,158.29,3.1582]
[1727417731273,3.19272966,158.35,158.27,15.14]
[1727417731467,15.14,158.37,158.27,15.14]
[1727417731669,3.1574,158.34,158.28,3.1584]
[1727417732069,18.23542502,158.35,158.27,15.14]
[1727417732273,491.6638635,158.44,158.27,3.1586]
[1727417732274,3.1575,158.33,158.27,3.1586]
[1727417732775,3.1577,158.32,158.26,3.1588]
[1727417732972,2.6211,158.36,158.23,24.28]
[1727417733175,2.6211,158.36,158.24,1.2762]
[1727417733480,3.1578,158.32,158.25,3.159]
[1727417733679,2.6211,158.36,158.24,1.2762]
[1727417733680,18.98,158.4,158.24,1.2762]
[1727417733982,3.158,158.31,158.25,3.159]
[1727417734177,3.10612874,158.31,158.24,1.2762]
[1727417734373,3.1584,158.29,158.24,1.2762]
[1727417734588,3.18985614,158.31,158.24,1.2762]
[1727417734874,24.28,158.32,158.22,5.8249]
[1727417735075,24.28,158.32,158.22,1.3243]
[1727417735076,27.3618004,158.32,158.22,1.3243]
[1727417735581,3.1585,158.28,158.22,4.4839]
[1727417735771,27.3618004,158.32,158.22,1.3243]
[1727417736174,20.252,158.43,158.25,24.28]
[1727417736381,3.23598521,158.35,158.25,24.28]
[1727417736785,19.43923911,158.43,158.28,3.1583]
[1727417736980,24.28,158.39,158.28,3.1583]
[1727417737282,24.28,158.41,158.28,24.28]
[1727417737783,24.28,158.41,158.29,1.3519]
[1727417737984,3.1568,158.37,158.31,3.1577]
[1727417738283,24.28,158.41,158.31,3.1577]
[1727417738479,24.28,158.41,158.29,1.3519]
[1727417738685,24.28,158.41,158.3,3.1578]
[1727417738889,1.2545,158.4,158.29,1.3519]
[1727417739284,3.1567,158.37,158.29,1.3519]
[1727417739880,6.309,158.48,158.29,1.3519]
[1727417740085,24.28,158.4,158.29,1.3519]
[1727417740286,27.39217364,158.4,158.29,1.3519]
[1727417740487,3.1575,158.33,158.29,1.3519]
[1727417740686,24.28,158.37,158.29,1.3519]
[1727417740892,24.28,158.37,158.27,1.3671]
[1727417741187,24.28,158.35,158.27,1.3671]
[1727417741489,24.28,158.35,158.25,1.3391]
[1727417741690,24.28,158.32,158.23,75.267349]
[1727417742190,24.28,158.32,158.23,78.426649]